[Event "46th GRE-chT Premier 2018"]
[Site "Rio Achaia"]
[Date "2018.07.12"]
[Round "4"]
[White "Serefidou, Despina"]
[Black "Ratsma, Rosa"]
[Result "0-1"]
[ECO "B92"]
[WhiteElo "1906"]
[BlackElo "2265"]
[Annotator "NA"]
[PlyCount "108"]
[EventDate "2018.07.10"]
[EventType "team-tourn"]
[EventCountry "GRE"]
[SourceTitle "playchess.com"]
[Source "ChessBase"]
[SourceQuality "1"]
[TimeControl "40/5400+30:1800+30"]

1. e4 {[%emt 0:00:00]} c5 {[%emt 0:00:00]} 2. Nf3 {[%emt 0:00:00]} d6 {[%emt 0:00:00]} 3. d4 {[%emt 0:00:00]} cxd4 {[%emt 0:00:04]} 4. Nxd4 {[%emt 0:00:00]} Nf6 {[%emt 0:00:13]} 5. Nc3 {[%emt 0:00:06]} a6 {[%emt 0:00:09]} 6. Be2 {[%emt 0:00:42]} Nbd7 {[%emt 0:00:51]} 7. O-O {[%emt 0:00:58]} g6 {[%emt 0:00:43]} 8. a4 {[%emt 0:00:40]} Bg7 {[%emt 0:01:52]} 9. Be3 {[%emt 0:01:38]} Qc7 {[%emt 0:07:09]} 10. a5 {[%emt 0:04:29]} O-O {[%emt 0:01:37]} 11. Nd5 {[%emt 0:07:25]} Qd8 {[%emt 0:09:16]} 12. f3 {[%emt 0:05:43]} e6 {[%emt 0:04:20]} 13. Nb4 {[%emt 0:08:27]} d5 {[%emt 0:09:18]} 14. exd5 {[%emt 0:00:45]} Nxd5 {[%emt 0:01:04]} 15. Nxd5 {[%emt 0:00:10]} exd5 {[%emt 0:00:05]} 16. Qd2 {[%emt 0:02:41]} Re8 {[%emt 0:04:13]} 17. Rfe1 {[%emt 0:07:35]} Ne5 {[%emt 0:05:08]} 18. b3 {[%emt 0:02:52]} Bd7 {[%emt 0:04:23]} 19. Bh6 {[%emt 0:03:01]} Bh8 {[%emt 0:03:53]} 20. f4 {[%emt 0:12:09]} Nc6 {[%emt 0:04:57]} 21. Nxc6 {[%emt 0:00:46]} bxc6 {[%emt 0:01:05]} 22. Bg5 {[%emt 0:03:01]} Qc7 {[%emt 0:02:33]} 23. Rad1 {[%emt 0:00:37]} Qd6 {[%emt 0:03:45]} 24. b4 {[%emt 0:10:44]} Be6 {[%emt 0:08:50]} 25. c4 {[%emt 0:04:29]} d4 {[%emt 0:04:48]} 26. c5 {[%emt 0:01:05]} Qd7 {[%emt 0:00:37]} 27. Bd3 {[%emt 0:03:12]} Bg7 {[%emt 0:04:39]} 28. Bh4 {[%emt 0:04:05]} Reb8 {[%emt 0:04:30]} 29. Bf2 {[%emt 0:01:51]} Bb3 {[%emt 0:00:31]} 30. Rb1 {[%emt 0:01:19]} Bd5 {[%emt 0:00:56]} 31. Bf1 {[%emt 0:05:57]} Be6 {[%emt 0:02:21]} 32. Bd3 {[%emt 0:00:39]} Rd8 {[%emt 0:02:46]} 33. Bh4 {[%emt 0:00:56]} Rdc8 {[%emt 0:00:59]} 34. Rbd1 {[%emt 0:02:07]} Qd5 {[%emt 0:02:23]} 35. Be4 {[%emt 0:01:49]} Qb3 {[%emt 0:01:00]} 36. Bd3 {[%emt 0:02:29]} Rcb8 {[%emt 0:02:54]} 37. Rb1 {[%emt 0:00:34]} Qc3 {[%emt 0:00:27]} 38. Qxc3 {[%emt 0:01:57]} dxc3 {[%emt 0:00:05]} 39. Re2 {[%emt 0:00:31]} Ra7 {[%emt 0:02:30]} 40. Be1 {[%emt 0:00:00]} Bg4 {[%emt 0:00:00]} 41. Ra2 {[%emt 0:08:39]} Rd8 {[%emt 0:09:05]} 42. Bc2 {[%emt 0:07:22]} Rad7 {[%emt 0:08:46]} 43. h3 Bd1 {[%emt 0:01:49]} 44. Kf1 {[%emt 0:11:42]} Rd4 {[%emt 0:02:38]} 45. g3 {[%emt 0:03:54]} Bxc2 {[%emt 0:02:15]} 46. Rxc2 {[%emt 0:00:02]} Rc4 {[%emt 0:00:24]} 47. Ke2 {[%emt 0:03:22]} f5 {[%emt 0:01:58]} 48. Rbc1 {[%emt 0:00:47]} Rxb4 {[%emt 0:02:32]} 49. Bxc3 {[%emt 0:00:14]} Bxc3 {[%emt 0:00:24]} 50. Rxc3 {[%emt 0:00:01]} Rb5 {[%emt 0:00:20]} 51. Re3 {[%emt 0:01:12]} Rb2+ {[%emt 0:00:34]} 52. Kf3 {[%emt 0:00:40]} Rdd2 {[%emt 0:00:35]} 53. Re8+ {[%emt 0:00:19]} Kf7 {[%emt 0:00:11]} 54. Ra8 {[%emt 0:00:14]} Rd3# 0-1

[Event "46th GRE-chT Premier 2018"]
[Site "Rio Achaia"]
[Date "2018.07.12"]
[Round "4"]
[White "Vallianos, Gerasimos"]
[Black "Ergazakis, Ioannis"]
[Result "0-1"]
[ECO "A35"]
[WhiteElo "1899"]
[BlackElo "2228"]
[Annotator "NA"]
[PlyCount "60"]
[EventDate "2018.07.10"]
[EventType "team-tourn"]
[EventCountry "GRE"]
[SourceTitle "playchess.com"]
[Source "ChessBase"]
[SourceQuality "1"]
[TimeControl "40/5400+30:1800+30"]

1. Nf3 {[%emt 0:00:00]} c5 {[%emt 0:00:04]} 2. c4 {[%emt 0:00:00]} Nc6 {[%emt 0:00:19]} 3. Nc3 {[%emt 0:00:00]} Nf6 {[%emt 0:00:18]} 4. g3 {[%emt 0:00:10]} d6 {[%emt 0:01:58]} 5. Bg2 {[%emt 0:00:10]} g6 {[%emt 0:00:12]} 6. O-O {[%emt 0:00:08]} Bg7 {[%emt 0:00:06]} 7. d4 {[%emt 0:00:24]} cxd4 {[%emt 0:00:12]} 8. Nxd4 {[%emt 0:00:07]} Bd7 {[%emt 0:00:09]} 9. b3 {[%emt 0:05:18]} O-O {[%emt 0:02:08]} 10. Bb2 {[%emt 0:00:15]} Rc8 {[%emt 0:03:05]} 11. Nc2 {[%emt 0:05:22]} a6 {[%emt 0:04:57]} 12. Nd5 {[%emt 0:01:31]} Nxd5 {[%emt 0:01:04]} 13. Bxg7 {[%emt 0:00:09]} Kxg7 {[%emt 0:00:03]} 14. Qxd5 {[%emt 0:01:13]} b5 {[%emt 0:06:14]} 15. cxb5 {[%emt 0:09:35]} axb5 {[%emt 0:00:12]} 16. Ne3 {[%emt 0:05:08]} Qb6 {[%emt 0:01:45]} 17. Rfc1 {[%emt 0:01:56]} Nd4 {[%emt 0:04:12]} 18. Kf1 {[%emt 0:06:36]} Bc6 {[%emt 0:08:28]} 19. Qg5 {[%emt 0:00:41]} f6 {[%emt 0:01:55]} 20. Nd5 {[%emt 0:03:10]} Qb7 {[%emt 0:02:56]} 21. Qe3 {[%emt 0:15:58]} Bxd5 {[%emt 0:00:27]} 22. Bh3 {[%emt 0:03:11]} Rxc1+ {[%emt 0:00:17]} 23. Rxc1 {[%emt 0:00:44]} e5 {[%emt 0:00:20]} 24. Qd2 {[%emt 0:01:25]} Be6 {[%emt 0:00:57]} 25. Bg2 {[%emt 0:01:17]} Bh3 {[%emt 0:00:12]} 26. f3 {[%emt 0:00:15]} Bxg2+ {[%emt 0:00:05]} 27. Kxg2 {[%emt 0:00:06]} Rc8 {[%emt 0:00:05]} 28. Rxc8 {[%emt 0:01:03]} Qxc8 {[%emt 0:00:05]} 29. Qa5 {[%emt 0:01:00]} Qc2 {[%emt 0:00:26]} 30. Qa7+ {[%emt 0:00:59]} Kh6 {[%emt 0:00:08]} 0-1

[Event "46th GRE-chT Premier 2018"]
[Site "Rio Achaia"]
[Date "2018.07.12"]
[Round "4"]
[White "Gkikas, Vasilios"]
[Black "Makris, Spyridon-Dionysios"]
[Result "1-0"]
[ECO "C55"]
[WhiteElo "1892"]
[BlackElo "1799"]
[Annotator "NA"]
[PlyCount "83"]
[EventDate "2018.07.10"]
[EventType "team-tourn"]
[EventCountry "GRE"]
[SourceTitle "playchess.com"]
[Source "ChessBase"]
[SourceQuality "1"]
[TimeControl "40/5400+30:1800+30"]

1. e4 {[%emt 0:01:30]} e5 {[%emt 0:00:00]} 2. Nf3 {[%emt 0:00:45]} Nc6 {[%emt 0:00:00]} 3. Bc4 {[%emt 0:00:43]} Nf6 {[%emt 0:00:00]} 4. d3 {[%emt 0:01:15]} Be7 {[%emt 0:00:00]} 5. c3 {[%emt 0:00:53]} d6 {[%emt 0:00:19]} 6. Bb3 {[%emt 0:00:14]} Na5 {[%emt 0:00:31]} 7. Bc2 {[%emt 0:00:10]} c5 {[%emt 0:00:07]} 8. Nbd2 {[%emt 0:00:22]} Nc6 {[%emt 0:00:13]} 9. Nf1 {[%emt 0:01:11]} h6 {[%emt 0:01:33]} 10. Ng3 {[%emt 0:03:03]} O-O {[%emt 0:00:12]} 11. O-O {[%emt 0:03:10]} Re8 {[%emt 0:03:50]} 12. Qe2 {[%emt 0:06:31]} Bf8 {[%emt 0:03:01]} 13. Bb3 {[%emt 0:00:11]} d5 {[%emt 0:05:20]} 14. h3 {[%emt 0:05:39]} g6 {[%emt 0:06:56]} 15. Rd1 {[%emt 0:02:13]} Be6 {[%emt 0:01:56]} 16. Be3 {[%emt 0:07:35]} Qc7 {[%emt 0:04:40]} 17. Bc2 {[%emt 0:03:36]} a6 {[%emt 0:07:54]} 18. Nh4 {[%emt 0:05:01]} d4 {[%emt 0:03:02]} 19. Bd2 {[%emt 0:01:10]} Bg7 {[%emt 0:01:06]} 20. Rf1 {[%emt 0:01:00]} Nd7 {[%emt 0:00:22]} 21. Nf3 {[%emt 0:08:45]} b5 {[%emt 0:04:18]} 22. Nh2 {[%emt 0:05:41]} c4 {[%emt 0:04:55]} 23. Ng4 {[%emt 0:11:57]} h5 {[%emt 0:01:32]} 24. Nh6+ {[%emt 0:00:44]} Kh7 {[%emt 0:00:23]} 25. Nhf5 {[%emt 0:00:06]} Nc5 {[%emt 0:06:45]} 26. Nxg7 {[%emt 0:05:34]} Kxg7 {[%emt 0:00:01]} 27. Rfd1 {[%emt 0:01:30]} Rad8 {[%emt 0:03:22]} 28. Bc1 {[%emt 0:05:53]} dxc3 {[%emt 0:00:17]} 29. bxc3 {[%emt 0:01:20]} h4 {[%emt 0:00:40]} 30. Qe3 {[%emt 0:05:47]} hxg3 {[%emt 0:02:28]} 31. Qxc5 {[%emt 0:00:24]} gxf2+ {[%emt 0:01:53]} 32. Qxf2 {[%emt 0:02:29]} Qe7 {[%emt 0:01:45]} 33. d4 {[%emt 0:01:54]} exd4 {[%emt 0:01:01]} 34. cxd4 {[%emt 0:00:09]} Qf6 {[%emt 0:00:51]} 35. Qxf6+ {[%emt 0:01:18]} Kxf6 {[%emt 0:00:02]} 36. d5 {[%emt 0:00:07]} Nb4 {[%emt 0:00:05]} 37. Bb2+ {[%emt 0:00:06]} Kg5 {[%emt 0:00:07]} 38. dxe6 {[%emt 0:02:09]} Nxc2 {[%emt 0:00:34]} 39. exf7 {[%emt 0:00:09]} Rf8 {[%emt 0:00:13]} 40. Rxd8 {[%emt 0:00:00]} Rxd8 {[%emt 0:00:00]} 41. Rf1 {[%emt 0:00:18]} Rf8 {[%emt 0:00:28]} 42. Bg7 {[%emt 0:00:11]} 1-0

[Event "46th GRE-chT Premier 2018"]
[Site "Rio Achaia"]
[Date "2018.07.12"]
[Round "4"]
[White "Georgiadis, Alexandros"]
[Black "Sgouros, Apostolos"]
[Result "1-0"]
[ECO "E86"]
[WhiteElo "1882"]
[BlackElo "2024"]
[Annotator "NA"]
[PlyCount "73"]
[EventDate "2018.07.10"]
[EventType "team-tourn"]
[EventCountry "GRE"]
[SourceTitle "playchess.com"]
[Source "ChessBase"]
[SourceQuality "1"]
[TimeControl "40/5400+30:1800+30"]

1. d4 {[%emt 0:00:00]} Nf6 {[%emt 0:08:46]} 2. c4 {[%emt 0:00:00]} g6 {[%emt 0:00:09]} 3. Nc3 {[%emt 0:00:00]} Bg7 {[%emt 0:00:05]} 4. e4 {[%emt 0:00:05]} d6 {[%emt 0:00:05]} 5. f3 {[%emt 0:00:27]} O-O {[%emt 0:00:10]} 6. Nge2 {[%emt 0:00:12]} e5 {[%emt 0:00:17]} 7. Be3 {[%emt 0:00:58]} c6 {[%emt 0:02:04]} 8. Qd2 {[%emt 0:01:23]} Qa5 {[%emt 0:01:34]} 9. d5 {[%emt 0:01:06]} cxd5 {[%emt 0:00:56]} 10. cxd5 {[%emt 0:00:11]} Na6 {[%emt 0:10:39]} 11. Nc1 {[%emt 0:23:26]} Nc5 {[%emt 0:01:54]} 12. a3 {[%emt 0:00:10]} Qd8 {[%emt 0:01:11]} 13. b4 {[%emt 0:00:09]} Na6 {[%emt 0:01:29]} 14. Bxa6 {[%emt 0:01:06]} bxa6 {[%emt 0:00:08]} 15. Nb3 {[%emt 0:00:06]} Nh5 {[%emt 0:01:10]} 16. Na5 {[%emt 0:01:04]} f5 {[%emt 0:02:28]} 17. Nc6 {[%emt 0:08:30]} Qd7 {[%emt 0:01:36]} 18. O-O {[%emt 0:02:06]} Nf4 {[%emt 0:09:17]} 19. Kh1 {[%emt 0:03:54]} Bf6 {[%emt 0:01:46]} 20. a4 {[%emt 0:00:35]} Qg7 {[%emt 0:01:22]} 21. g3 {[%emt 0:00:41]} Bd7 {[%emt 0:01:57]} 22. b5 {[%emt 0:00:45]} g5 {[%emt 0:02:29]} 23. gxf4 {[%emt 0:01:07]} Bxc6 {[%emt 0:00:12]} 24. fxg5 {[%emt 0:00:07]} Bd7 {[%emt 0:03:41]} 25. gxf6 {[%emt 0:00:09]} Rxf6 {[%emt 0:00:04]} 26. Rg1 {[%emt 0:00:24]} Rg6 {[%emt 0:00:03]} 27. exf5 {[%emt 0:05:12]} Bxf5 {[%emt 0:00:08]} 28. Ne4 {[%emt 0:00:05]} Rf8 {[%emt 0:02:35]} 29. Bh6 {[%emt 0:01:10]} Qf7 {[%emt 0:00:29]} 30. Rxg6+ {[%emt 0:02:48]} Bxg6 {[%emt 0:00:18]} 31. Nxd6 {[%emt 0:03:19]} Qxf3+ {[%emt 0:00:24]} 32. Qg2 {[%emt 0:01:02]} Qc3 {[%emt 0:01:14]} 33. Rc1 {[%emt 0:00:46]} Qa3 {[%emt 0:00:19]} 34. Nc4 {[%emt 0:00:48]} Qxa4 {[%emt 0:03:08]} 35. Bxf8 {[%emt 0:00:38]} axb5 {[%emt 0:00:07]} 36. Nb2 {[%emt 0:07:02]} Qf4 {[%emt 0:01:34]} 37. Rf1 {[%emt 0:00:10]} 1-0

[Event "46th GRE-chT Premier 2018"]
[Site "Rio Achaia"]
[Date "2018.07.12"]
[Round "4"]
[White "Berbatis, Antonios"]
[Black "Tzagarakis, Panagiotis"]
[Result "1-0"]
[ECO "B56"]
[WhiteElo "1881"]
[BlackElo "1573"]
[Annotator "NA"]
[PlyCount "67"]
[EventDate "2018.07.10"]
[EventType "team-tourn"]
[EventCountry "GRE"]
[SourceTitle "playchess.com"]
[Source "ChessBase"]
[SourceQuality "1"]
[TimeControl "40/5400+30:1800+30"]

1. e4 {[%emt 0:00:00]} c5 {[%emt 0:00:00]} 2. Nf3 {[%emt 0:00:00]} d6 {[%emt 0:00:00]} 3. d4 {[%emt 0:00:24]} cxd4 {[%emt 0:00:00]} 4. Nxd4 {[%emt 0:00:18]} Nf6 {[%emt 0:00:00]} 5. Nc3 {[%emt 0:01:03]} Nc6 {[%emt 0:00:06]} 6. h3 {[%emt 0:04:48]} g6 {[%emt 0:02:21]} 7. Be3 {[%emt 0:00:58]} Bg7 {[%emt 0:00:09]} 8. Qd2 {[%emt 0:00:39]} O-O {[%emt 0:00:21]} 9. O-O-O {[%emt 0:00:24]} Bd7 {[%emt 0:19:22]} 10. g4 {[%emt 0:04:15]} Nxd4 {[%emt 0:05:39]} 11. Bxd4 {[%emt 0:00:07]} Bc6 {[%emt 0:01:13]} 12. Bg2 {[%emt 0:04:23]} Qa5 {[%emt 0:13:21]} 13. Kb1 {[%emt 0:02:17]} Rfe8 {[%emt 0:01:26]} 14. g5 {[%emt 0:11:02]} Nh5 {[%emt 0:01:10]} 15. Bxg7 {[%emt 0:02:01]} Nxg7 {[%emt 0:00:06]} 16. f4 {[%emt 0:04:55]} Rac8 {[%emt 0:03:20]} 17. h4 {[%emt 0:03:27]} b5 {[%emt 0:11:24]} 18. f5 {[%emt 0:08:27]} b4 {[%emt 0:11:20]} 19. Ne2 {[%emt 0:04:34]} gxf5 {[%emt 0:06:05]} 20. h5 {[%emt 0:01:59]} Bxe4 {[%emt 0:03:54]} 21. Bxe4 {[%emt 0:00:40]} fxe4 {[%emt 0:00:53]} 22. g6 {[%emt 0:00:54]} Rc5 {[%emt 0:05:30]} 23. gxf7+ {[%emt 0:02:38]} Kxf7 {[%emt 0:00:07]} 24. Rdf1+ {[%emt 0:04:47]} Nf5 {[%emt 0:01:25]} 25. Nd4 {[%emt 0:04:28]} e6 {[%emt 0:09:35]} 26. Qh6 {[%emt 0:01:16]} Re7 {[%emt 0:00:32]} 27. Qxh7+ {[%emt 0:01:16]} Ke8 {[%emt 0:00:07]} 28. Qg8+ {[%emt 0:03:11]} Kd7 {[%emt 0:00:05]} 29. Nb3 {[%emt 0:00:25]} Qb6 {[%emt 0:00:26]} 30. Nxc5+ {[%emt 0:00:58]} Qxc5 {[%emt 0:00:11]} 31. h6 {[%emt 0:02:54]} Nd4 {[%emt 0:02:24]} 32. Rc1 {[%emt 0:01:49]} Nf3 {[%emt 0:02:54]} 33. h7 {[%emt 0:00:45]} Nd2+ {[%emt 0:00:31]} 34. Ka1 {[%emt 0:00:18]} 1-0

[Event "46th GRE-chT Premier 2018"]
[Site "Rio Achaia"]
[Date "2018.07.12"]
[Round "4"]
[White "Bardis, Harilaos-Panagiotis"]
[Black "Krallis, Christos"]
[Result "0-1"]
[ECO "B27"]
[WhiteElo "1866"]
[BlackElo "2132"]
[Annotator "NA"]
[PlyCount "98"]
[EventDate "2018.07.10"]
[EventType "team-tourn"]
[EventCountry "GRE"]
[SourceTitle "playchess.com"]
[Source "ChessBase"]
[SourceQuality "1"]
[TimeControl "40/5400+30:1800+30"]

1. e4 {[%emt 0:00:00]} c5 {[%emt 0:11:03]} 2. Nf3 {[%emt 0:00:00]} g6 {[%emt 0:00:53]} 3. c3 {[%emt 0:00:50]} Bg7 {[%emt 0:00:05]} 4. d4 {[%emt 0:00:04]} cxd4 {[%emt 0:00:04]} 5. cxd4 {[%emt 0:00:05]} d5 {[%emt 0:00:03]} 6. e5 {[%emt 0:00:04]} Nc6 {[%emt 0:00:04]} 7. h3 {[%emt 0:01:21]} f6 {[%emt 0:00:43]} 8. exf6 {[%emt 0:02:23]} Nxf6 {[%emt 0:00:25]} 9. Bb5 {[%emt 0:01:00]} Qa5+ {[%emt 0:01:05]} 10. Nc3 {[%emt 0:00:08]} Ne4 {[%emt 0:00:13]} 11. Qb3 {[%emt 0:00:39]} Nxc3 {[%emt 0:03:43]} 12. bxc3 {[%emt 0:00:06]} a6 {[%emt 0:00:40]} 13. Bxc6+ {[%emt 0:08:23]} bxc6 {[%emt 0:00:05]} 14. Bf4 {[%emt 0:00:34]} O-O {[%emt 0:00:49]} 15. Bg3 {[%emt 0:00:48]} Bf5 {[%emt 0:02:13]} 16. O-O {[%emt 0:15:12]} Rac8 {[%emt 0:08:21]} 17. Kh2 {[%emt 0:03:19]} Bf6 {[%emt 0:13:29]} 18. Rfe1 {[%emt 0:05:25]} h5 {[%emt 0:10:29]} 19. a4 {[%emt 0:08:36]} g5 {[%emt 0:05:16]} 20. h4 {[%emt 0:04:58]} g4 {[%emt 0:03:30]} 21. Ne5 {[%emt 0:02:12]} Rb8 {[%emt 0:06:58]} 22. Qa3 {[%emt 0:00:23]} Rfc8 {[%emt 0:08:20]} 23. Qc1 {[%emt 0:07:08]} Qd8 {[%emt 0:06:33]} 24. Qh6 {[%emt 0:00:54]} Qe8 {[%emt 0:00:25]} 25. Rac1 {[%emt 0:07:07]} Bg7 {[%emt 0:10:34]} 26. Qg5 {[%emt 0:00:49]} e6 {[%emt 0:01:04]} 27. c4 {[%emt 0:00:22]} Kh7 {[%emt 0:00:37]} 28. Bf4 {[%emt 0:01:13]} Bf8 {[%emt 0:02:15]} 29. cxd5 {[%emt 0:00:12]} cxd5 {[%emt 0:00:25]} 30. Nc6 {[%emt 0:06:04]} Rb7 {[%emt 0:01:16]} 31. Na5 {[%emt 0:01:12]} Rxc1 {[%emt 0:01:22]} 32. Bxc1 {[%emt 0:00:08]} Rb8 {[%emt 0:02:19]} 33. Bf4 {[%emt 0:01:27]} Rc8 {[%emt 0:00:35]} 34. Nb7 {[%emt 0:05:00]} Qg6 {[%emt 0:00:26]} 35. Qxg6+ {[%emt 0:00:26]} Kxg6 {[%emt 0:00:04]} 36. Bd6 {[%emt 0:02:47]} Bg7 {[%emt 0:00:14]} 37. Bc5 {[%emt 0:00:08]} Rc7 {[%emt 0:00:39]} 38. Nd6 {[%emt 0:00:25]} Rc6 {[%emt 0:00:25]} 39. a5 {[%emt 0:03:21]} e5 {[%emt 0:00:39]} 40. Nxf5 {[%emt 0:00:00]} Kxf5 {[%emt 0:00:00]} 41. Rd1 {[%emt 0:04:28]} Ke4 {[%emt 0:01:14]} 42. Kg3 {[%emt 0:11:17]} exd4 {[%emt 0:00:50]} 43. f3+ {[%emt 0:00:14]} Ke3 {[%emt 0:01:04]} 44. Re1+ {[%emt 0:00:20]} Kd3 {[%emt 0:00:06]} 45. Bb6 {[%emt 0:00:37]} Kd2 {[%emt 0:02:12]} 46. Re7 {[%emt 0:00:31]} Bf8 {[%emt 0:00:15]} 47. Rh7 {[%emt 0:03:04]} Bd6+ {[%emt 0:00:07]} 48. f4 {[%emt 0:00:05]} Rc3+ {[%emt 0:00:25]} 49. Kf2 {[%emt 0:00:07]} g3+ {[%emt 0:00:02]} 0-1

[Event "46th GRE-chT Premier 2018"]
[Site "Rio Achaia"]
[Date "2018.07.12"]
[Round "4"]
[White "Giatrakos, Orestis"]
[Black "Ladopoulos, Dimitrios"]
[Result "0-1"]
[ECO "A48"]
[WhiteElo "1860"]
[BlackElo "2183"]
[Annotator "NA"]
[PlyCount "66"]
[EventDate "2018.07.10"]
[EventType "team-tourn"]
[EventCountry "GRE"]
[SourceTitle "playchess.com"]
[Source "ChessBase"]
[SourceQuality "1"]
[TimeControl "40/5400+30:1800+30"]

1. d4 {[%emt 0:00:00]} Nf6 {[%emt 0:00:09]} 2. Nf3 {[%emt 0:00:00]} g6 {[%emt 0:00:42]} 3. c4 {[%emt 0:00:00]} Bg7 {[%emt 0:00:45]} 4. Nc3 {[%emt 0:00:00]} d6 {[%emt 0:01:02]} 5. h3 {[%emt 0:00:08]} O-O {[%emt 0:00:12]} 6. Bf4 {[%emt 0:00:03]} Nfd7 {[%emt 0:01:20]} 7. e3 {[%emt 0:00:17]} e5 {[%emt 0:00:24]} 8. Bh2 {[%emt 0:00:19]} Nc6 {[%emt 0:05:06]} 9. Be2 {[%emt 0:00:30]} f5 {[%emt 0:02:22]} 10. dxe5 {[%emt 0:04:58]} dxe5 {[%emt 0:05:39]} 11. O-O {[%emt 0:02:35]} e4 {[%emt 0:03:43]} 12. Nd2 {[%emt 0:12:33]} Nce5 {[%emt 0:09:35]} 13. Nb3 {[%emt 0:03:08]} c6 {[%emt 0:07:30]} 14. Qc2 {[%emt 0:12:36]} Qe7 {[%emt 0:08:37]} 15. Rad1 {[%emt 0:01:27]} Nf7 {[%emt 0:05:06]} 16. Nd4 {[%emt 0:03:18]} Nde5 {[%emt 0:02:09]} 17. a4 {[%emt 0:00:51]} Bd7 {[%emt 0:11:35]} 18. b3 {[%emt 0:00:59]} Rae8 {[%emt 0:01:54]} 19. Rb1 {[%emt 0:02:48]} g5 {[%emt 0:01:09]} 20. b4 {[%emt 0:02:53]} g4 {[%emt 0:09:26]} 21. hxg4 {[%emt 0:03:12]} Nxg4 {[%emt 0:01:14]} 22. Bxg4 {[%emt 0:00:48]} fxg4 {[%emt 0:00:05]} 23. Nde2 {[%emt 0:00:25]} Ng5 {[%emt 0:01:50]} 24. Nf4 {[%emt 0:02:38]} Rf6 {[%emt 0:01:42]} 25. Nce2 {[%emt 0:01:21]} Rh6 {[%emt 0:05:52]} 26. Bg3 {[%emt 0:00:56]} Rf8 {[%emt 0:02:07]} 27. Rfd1 {[%emt 0:02:00]} Nf3+ {[%emt 0:03:14]} 28. gxf3 {[%emt 0:00:15]} gxf3 {[%emt 0:00:10]} 29. Nc3 {[%emt 0:02:15]} Rxf4 {[%emt 0:00:57]} 30. exf4 {[%emt 0:00:22]} Qe6 {[%emt 0:00:20]} 31. Qxe4 {[%emt 0:01:10]} Rh1+ {[%emt 0:00:05]} 32. Kxh1 {[%emt 0:00:04]} Qh3+ {[%emt 0:00:07]} 33. Bh2 {[%emt 0:00:03]} Qg2# 0-1

[Event "46th GRE-chT Premier 2018"]
[Site "Rio Achaia"]
[Date "2018.07.12"]
[Round "4"]
[White "Koutlas, Nikolaos"]
[Black "Stamatiou, Rodolfos"]
[Result "1-0"]
[ECO "D45"]
[WhiteElo "1856"]
[BlackElo "1950"]
[Annotator "NA"]
[PlyCount "109"]
[EventDate "2018.07.10"]
[EventType "team-tourn"]
[EventCountry "GRE"]
[SourceTitle "playchess.com"]
[Source "ChessBase"]
[SourceQuality "1"]
[TimeControl "40/5400+30:1800+30"]

1. c4 {[%emt 0:00:00]} e6 {[%emt 0:00:12]} 2. d4 {[%emt 0:00:00]} d5 {[%emt 0:01:15]} 3. Nc3 {[%emt 0:00:10]} c6 {[%emt 0:00:17]} 4. e3 {[%emt 0:01:00]} Nf6 {[%emt 0:01:11]} 5. Nf3 {[%emt 0:00:15]} Nbd7 {[%emt 0:01:43]} 6. Qc2 {[%emt 0:01:06]} Bd6 {[%emt 0:07:41]} 7. Bd3 {[%emt 0:00:46]} dxc4 {[%emt 0:00:46]} 8. Bxc4 {[%emt 0:00:06]} e5 {[%emt 0:02:53]} 9. O-O {[%emt 0:05:49]} O-O {[%emt 0:03:44]} 10. Rd1 {[%emt 0:06:02]} Qe7 {[%emt 0:03:40]} 11. h3 {[%emt 0:10:12]} exd4 {[%emt 0:13:08]} 12. exd4 {[%emt 0:02:40]} Nb6 {[%emt 0:02:15]} 13. Re1 {[%emt 0:01:17]} Qc7 {[%emt 0:04:16]} 14. Bb3 {[%emt 0:01:21]} h6 {[%emt 0:18:10]} 15. Bxh6 {[%emt 0:02:16]} Bf4 {[%emt 0:07:23]} 16. Bg5 {[%emt 0:06:04]} Bxg5 {[%emt 0:06:06]} 17. Nxg5 {[%emt 0:00:10]} Qf4 {[%emt 0:03:39]} 18. Nge4 {[%emt 0:07:20]} Bf5 {[%emt 0:06:27]} 19. Qc1 {[%emt 0:03:57]} Qxc1 {[%emt 0:03:55]} 20. Nxf6+ {[%emt 0:00:22]} gxf6 {[%emt 0:00:05]} 21. Raxc1 {[%emt 0:00:24]} Rfe8 {[%emt 0:02:03]} 22. Rxe8+ {[%emt 0:03:40]} Rxe8 {[%emt 0:00:08]} 23. Rd1 {[%emt 0:00:38]} Rd8 {[%emt 0:04:17]} 24. d5 {[%emt 0:06:45]} cxd5 {[%emt 0:02:26]} 25. Nxd5 {[%emt 0:01:12]} Nxd5 {[%emt 0:01:20]} 26. Rxd5 {[%emt 0:00:29]} Rxd5 {[%emt 0:00:28]} 27. Bxd5 {[%emt 0:00:08]} b6 {[%emt 0:00:07]} 28. f4 {[%emt 0:01:56]} Kg7 {[%emt 0:01:43]} 29. Kf2 {[%emt 0:00:37]} Bd7 {[%emt 0:01:10]} 30. g4 {[%emt 0:01:31]} f5 {[%emt 0:00:53]} 31. g5 {[%emt 0:00:13]} f6 {[%emt 0:01:21]} 32. gxf6+ {[%emt 0:01:18]} Kxf6 {[%emt 0:00:07]} 33. Ke3 {[%emt 0:00:53]} Bb5 {[%emt 0:00:56]} 34. Kd4 {[%emt 0:01:44]} Bd7 {[%emt 0:00:40]} 35. a3 {[%emt 0:00:59]} Bb5 {[%emt 0:00:29]} 36. h4 {[%emt 0:03:23]} Bd7 {[%emt 0:00:33]} 37. Bf3 {[%emt 0:00:33]} Be6 {[%emt 0:00:18]} 38. Bc6 {[%emt 0:00:32]} Bf7 {[%emt 0:00:38]} 39. Bd7 {[%emt 0:00:44]} Bg8 {[%emt 0:00:31]} 40. Be8 {[%emt 0:00:00]} Be6 {[%emt 0:00:00]} 41. h5 {[%emt 0:00:55]} Bg8 {[%emt 0:07:13]} 42. h6 {[%emt 0:01:30]} a6 {[%emt 0:01:06]} 43. b4 {[%emt 0:02:18]} a5 {[%emt 0:01:39]} 44. bxa5 {[%emt 0:01:14]} bxa5 {[%emt 0:00:01]} 45. Kc5 {[%emt 0:00:26]} Bb3 {[%emt 0:02:27]} 46. Kb5 {[%emt 0:00:20]} a4 {[%emt 0:00:32]} 47. Kb4 {[%emt 0:00:13]} Bd1 {[%emt 0:01:04]} 48. Bxa4 {[%emt 0:00:38]} Bh5 {[%emt 0:00:29]} 49. Bc2 {[%emt 0:00:43]} Bg4 {[%emt 0:00:53]} 50. a4 {[%emt 0:00:56]} Kg6 {[%emt 0:01:01]} 51. a5 {[%emt 0:00:17]} Kxh6 {[%emt 0:01:39]} 52. a6 {[%emt 0:00:17]} Kg6 {[%emt 0:00:36]} 53. Kc5 {[%emt 0:00:28]} Kf6 {[%emt 0:00:44]} 54. Bb3 {[%emt 0:00:30]} Bf3 {[%emt 0:00:36]} 55. Bd5 {[%emt 0:00:07]} 1-0